Cogmind - Beta 11 @@@ ROGUE MODE // 2022.04.15 @ 07:50:09 Player: Azken Zutik Result: Self-destructed Performance ------------- Evolutions (0) 0 Regions Visited (4) 800 Robots Destroyed (42) 210 Value Destroyed (665) 665 Prototype IDs (1) 20 Alien Tech Used (0) 0 Bonus (-44) -44 TOTAL SCORE: 1651 Bonus ------- Follower Combat Kills 95 Friendly Fire -139 Cogmind --------- Core Integrity 34/250 Matter 300/300 Energy 150/150 System Corruption 0% Temperature Cool (0) Movement Rolling (130) Ox2 Location -9/Mines Parts ------- > --- POWER (1) -------- Light Angular Momentum Engine > --- PROPULSION (2) --- Armored Huge Wheel > --- UTILITY (2) ------ High-capacity Storage Unit Splice Drone Bay (6/6) > --- WEAPON (2) ------- Rocket Launcher Heavy Missile Launcher > --- INVENTORY (20) --- Light Treads Light Treads High-capacity Matter Pod (200) Compact Matter Pod (150) Compact Matter Pod (150) Seismic Detector Light Armor Plating EM Pulse Gun Assault Rifle Light Assault Rifle Light Assault Rifle Light Assault Rifle Light Assault Rifle Light Assault Rifle Light Assault Rifle Light Assault Rifle Light Assault Rifle Heavy Assault Rifle Hammer Great Axe Peak State ------------ > --- POWER ------------ Light Angular Momentum Engine > --- PROPULSION ------- Armored Huge Wheel > --- UTILITY ---------- High-capacity Storage Unit Splice Drone Bay > --- WEAPON ----------- Rocket Launcher Heavy Missile Launcher > --- INVENTORY -------- Light Treads Light Treads High-capacity Matter Pod Compact Matter Pod Compact Matter Pod Seismic Detector EM Pulse Gun Assault Rifle Light Assault Rifle Light Assault Rifle Light Assault Rifle Light Assault Rifle Light Assault Rifle Light Assault Rifle Light Assault Rifle Light Assault Rifle Heavy Assault Rifle Mining Laser Hammer Great Axe [Rating: 29] Favorites ----------- Power Light Angular Momentum Engine Engine Light Angular Momentum Engine Power Core Light Nuclear Core Propulsion Light Treads Treads Light Treads Wheel Armored Huge Wheel Utility High-capacity Storage Unit Device Seismic Detector Storage High-capacity Storage Unit Protection Light Armor Plating Weapon Assault Rifle Ballistic Gun Assault Rifle Launcher Heavy Missile Launcher Build | -11 -10 -10 -10 -9 ------- Run | Scr Mat Min Exi Min Slots Evolved . | . . . . . Power . | . . . . . Propulsion . | . . . . . Utility . | . . . . . Weapon . | . . . . . Parts Attached 24 | 7 6 6 . 5 Power 4 | 1 1 2 . . Engine 3 | 1 . 2 . . Core 1 | . 1 . . . Reactor . | . . . . . Propulsion 5 | 2 1 1 . 1 Treads 4 | 2 1 1 . . Leg . | . . . . . Wheel 1 | . . . . 1 Hover . | . . . . . Flight . | . . . . . Utility 8 | 2 3 1 . 2 Device 3 | 1 1 . . 1 Storage 2 | 1 1 . . . Processor . | . . . . . Hackware . | . . . . . Protection 3 | . 1 1 . 1 Artifact . | . . . . . Weapon 7 | 2 1 2 . 2 Energy Gun . | . . . . . Energy Cannon . | . . . . . Ballistic Gun 5 | 2 1 2 . . Ballistic Cannon . | . . . . . Launcher 2 | . . . . 2 Special Weapon . | . . . . . Impact Weapon . | . . . . . Slashing Weapon . | . . . . . Piercing Weapon . | . . . . . Special Melee Weapon . | . . . . . Unidentified Prototypes 1 | . . . . 1 Parts Lost 6 | . 1 3 . 2 Power 2 | . 1 1 . . Propulsion 2 | . . 1 . 1 Utility 1 | . . . . 1 Weapon 1 | . . 1 . . Highest Loss Streak 3 | . 1 3 . 2 To Critical Strikes . | . . . . . Average Slot Usage (%) 97 | . 99 99 100 91 Engine 10 | . 1 13 14 14 Core 3 | . 12 . . . Treads 22 | . 27 28 28 12 Wheel 2 | . . . . 7 Device 4 | . 7 . . 5 Storage 14 | . 14 14 14 14 Protection 9 | . 6 14 14 8 Ballistic Gun 21 | . 27 28 28 8 Launcher 6 | . . . . 19 Naked Turns . | . . . . . Heaviest Build 68 | 13 52 55 55 68 Greatest Support 40 | 40 40 40 40 40 Greatest Overweight (x) 2 | . 1 1 1 2 Average Overweight (x) 1 | . . 1 1 1 Largest Inventory Capacity 20 | 8 20 20 20 20 Average Capacity 18 | 7 15 20 20 20 Most Carried 20 | 5 20 20 20 20 Average Carried 16 | 1 11 19 20 19 Final Capacity 20 | 8 20 20 20 20 Final Carried 20 | 5 20 20 20 20 Class Distribution -------------------- 100% | Mutant Dominant Class ---------------- Mutant | -10/Materials Mutant | -10/Mines Mutant | -10/Exiles Mutant | -9/Mines Resources | -11 -10 -10 -10 -9 ----------- Run | Scr Mat Min Exi Min Matter Collected 1614 | 452 719 219 . 224 Remotely . | . . . . . Salvage Created 1440 | 283 623 352 . 182 Parts 95 | 33 38 18 . 6 Haulers Intercepted 2 | . 2 . . . Recyclers Shooed 2 | . 2 . . . Parts Field Recycled . | . . . . . Retrieved Matter . | . . . . . Parts Self-Destructed . | . . . . . Prevented . | . . . . . Kills | -11 -10 -10 -10 -9 ------- Run | Scr Mat Min Exi Min Combat Hostiles Destroyed 28 | . 11 6 . 11 Guns 17 | . 11 6 . . AOE 11 | . . . . 11 Classes Destroyed 8 | 3 4 . . 1 Worker 6 | 4 1 . . 1 Tunneler 9 | 9 . . . . Hauler 2 | . 2 . . . Recycler 6 | 1 2 1 . 2 Watcher 1 | . 1 . . . Swarmer 5 | . 5 . . . Grunt 13 | . 6 6 . 1 Assembled 11 | . . . . 11 Best Kill Streak 7 | 6 4 2 . 7 Combat Bots Only 7 | . 3 2 . 7 Max Kills in Single Turn 4 | 1 1 1 . 4 Gunslinging . | . . . . . Exploded 4 | . . . . 4 Melee . | . . . . . Uniques/NPCs Destroyed . | . . . . . Combat | -11 -10 -10 -10 -9 -------- Run | Scr Mat Min Exi Min Damage Taken 1496 | . 615 515 . 366 Core 216 | . 76 79 . 61 Absorbed by Shields . | . . . . . Regen/Repaired (Parts) 147 | . 147 . . . Core Remaining (%) 100 | 100 . . . . Volleys Fired 127 | 22 61 34 . 10 Largest 2 | 2 2 2 . 2 Hottest 72 | 40 40 40 . 72 Shots Fired 248 | 44 122 68 . 14 Gun 234 | 44 122 68 . . Cannon . | . . . . . Launcher 14 | . . . . 14 Special . | . . . . . Kinetic 234 | 44 122 68 . . Thermal . | . . . . . Explosive 14 | . . . . 14 Electromagnetic . | . . . . . Robot Hit Streak 12 | 4 12 8 . 4 Robot Miss Streak 5 | 3 5 3 . 1 Penetration Max . | . . . . . Secondary Targets 3 | . 1 2 . . Max Gunslinging Chain 1 | . 1 1 . . Shots Hit Robots 162 | 22 86 46 . 8 Core Hits 79 | 14 26 18 . 21 Critical Kills 1 | . 1 . . . Critical Parts Destroyed 1 | . . 1 . . Critical Strikes 2 | . 1 1 . . Destroy 2 | . 1 1 . . Melee Attacks . | . . . . . Impact . | . . . . . Slashing . | . . . . . Piercing . | . . . . . Sneak Attacks . | . . . . . Combat Hostiles . | . . . . . Follow-up Attacks . | . . . . . Damage Inflicted 2947 | 301 1111 478 . 1057 Guns 1890 | 301 1111 478 . . Cannons . | . . . . . Explosions 1057 | . . . . 1057 Melee . | . . . . . Ramming . | . . . . . Kinetic 1890 | 301 1111 478 . . Thermal . | . . . . . Explosive 1057 | . . . . 1057 Electromagnetic . | . . . . . Impact . | . . . . . Slashing . | . . . . . Piercing . | . . . . . Highest Corruption . | . . . . . Average Corruption . | . . . . . Corruption Purged . | . . . . . Corruption Blocked . | . . . . . Overload Shots . | . . . . . Overflow Damage 30 | . . . . 30 Projectiles . | . . . . . Explosions 30 | . . . . 30 Melee . | . . . . . Knockbacks . | . . . . . Impact . | . . . . . Kinetic . | . . . . . Secondary . | . . . . . Self-Inflicted Damage 143 | . . . . 143 Shots 5 | . . . . 5 Rammed . | . . . . . Targets Rammed . | . . . . . Kicked . | . . . . . Crushed . | . . . . . Highest Temperature 78 | . 13 77 . 78 Average Temperature 22 | . 5 25 . 26 Received Heat Transfer 534 | . 222 312 . . Siege Activations . | . . . . . Robots Corrupted . | . . . . . Combat Hostiles . | . . . . . Parts Fried . | . . . . . Impact Corruptions . | . . . . . Robots Melted . | . . . . . Combat Hostiles . | . . . . . Parts Melted . | . . . . . Heat Transferred . | . . . . . Parts Sabotaged . | . . . . . Parts Stolen . | . . . . . Parts Stripped . | . . . . . Power Chain Reactions . | . . . . . Missiles Intercepted . | . . . . . Alert | -11 -10 -10 -10 -9 ------- Run | Scr Mat Min Exi Min Peak Influence 168 | 70 161 110 . 168 Initial 2 | . . 2 . . Average 30 | 35 44 24 . 23 Maximum Alert Level . | . . . . . Low Security (%) 100 | 100 100 100 . 100 Level 1 . | . . . . . Level 2 . | . . . . . Level 3 . | . . . . . Level 4 . | . . . . . Level 5 . | . . . . . High Security . | . . . . . Max Security . | . . . . . Squads Dispatched 2 | . 2 . . . Investigation . | . . . . . Extermination . | . . . . . Reinforcement 2 | . 2 . . . Assault . | . . . . . Garrison . | . . . . . Intercept . | . . . . . Searches Triggered . | . . . . . Construction Impeded . | . . . . . Haulers Reinforced . | . . . . . Active Scanning Responses . | . . . . . Cargo Convoy Interrupts . | . . . . . Stealth | -11 -10 -10 -10 -9 --------- Run | Scr Mat Min Exi Min Distress Signals 1 | . 1 . . . Communications Jammed . | . . . . . Distress Signals . | . . . . . Times Spotted 43 | . 25 6 . 12 Peak Tracking Total 7 | . 5 2 . 7 Tactical Retreats 1 | . 1 . . . Traps | -11 -10 -10 -10 -9 ------- Run | Scr Mat Min Exi Min Traps Triggered 3 | . 3 . . . Indirectly . | . . . . . Trap Hack Attempts . | . . . . . Triggered . | . . . . . Disarmed . | . . . . . Reprogrammed . | . . . . . Reused . | . . . . . Traps Extracted . | . . . . . Installed . | . . . . . Triggered . | . . . . . Machines | -11 -10 -10 -10 -9 ---------- Run | Scr Mat Min Exi Min Machines Disabled 3 | . 1 . . 2 Max in Single Turn 2 | . 1 . . 2 Machines Sabotaged . | . . . . . Garrisons Compromised . | . . . . . Overloaded Fab Kills . | . . . . . Hacking | -11 -10 -10 -10 -9 --------- Run | Scr Mat Min Exi Min Machines Accessed 5 | . 2 . 1 2 Terminals 1 | . 1 . . . Fabricators . | . . . . . Repair Stations 1 | . 1 . . . Recycling Units . | . . . . . Scanalyzers . | . . . . . Garrison Access . | . . . . . Total Hacks 10 | . 7 . 1 2 Successful 9 | . 6 . 1 2 Failed 1 | . 1 . . . Catastrophic . | . . . . . Database Lockouts . | . . . . . Manual . | . . . . . Terminals 2 | . 2 . . . Fabricators . | . . . . . Repair Stations 5 | . 5 . . . Recycling Units . | . . . . . Scanalyzers . | . . . . . Garrison Access . | . . . . . Terminal Hacks 5 | . 2 . 1 2 Record 1 | . . . 1 . Open Door 2 | . . . . 2 Branch Access Points 1 | . 1 . . . Hauler Manifests 1 | . 1 . . . Fabricator Hacks . | . . . . . Repair Station Hacks 4 | . 4 . . . Scan Component 2 | . 2 . . . Repair 2 | . 2 . . . Recycling Unit Hacks . | . . . . . Scanalyzer . | . . . . . Garrison Access Hacks . | . . . . . Unauthorized Hacks . | . . . . . Terminals . | . . . . . Fabricators . | . . . . . Repair Stations . | . . . . . Recycling Units . | . . . . . Scanalyzers . | . . . . . Garrison Access . | . . . . . Data Cores Recovered . | . . . . . Used . | . . . . . Hacking Detections 2 | . 2 . . . Full Trace Events . | . . . . . Feedback Events . | . . . . . Feedback Blocked . | . . . . . Robot Schematics Acquired . | . . . . . Robots Built . | . . . . . Authchips . | . . . . . Time . | . . . . . Total Robot Build Rating . | . . . . . Part Schematics Acquired . | . . . . . Parts Built . | . . . . . Authchips . | . . . . . Time . | . . . . . Total Part Build Rating . | . . . . . Parts Repaired 2 | . 2 . . . Time 52 | . 52 . . . Parts Recycled . | . . . . . Recycled Matter . | . . . . . Retrieved Matter . | . . . . . Retrieved Components . | . . . . . Parts Scanalyzed . | . . . . . Part Schematics Acquired . | . . . . . Parts Damaged . | . . . . . Bothacking | -11 -10 -10 -10 -9 ------------ Run | Scr Mat Min Exi Min Used RIF Installer . | . . . . . Robots Hacked . | . . . . . Non-combat . | . . . . . Combat . | . . . . . Robot Hacks Applied . | . . . . . Relay Couplers Released . | . . . . . Fabnet Peak Effective % . | . . . . . Robots Rewired . | . . . . . Allies Hacked . | . . . . . Hacks Repelled . | . . . . . Allies | -11 -10 -10 -10 -9 -------- Run | Scr Mat Min Exi Min Total Allies 5 | . . 2 . 3 Largest Group 3 | . . 2 1 3 Highest-Rated Group 45 | . . 45 14 40 Highest-Rated Ally 31 | . . 31 14 16 Total Orders 1 | . . . . 1 RETURN 1 | . . . . 1 Ally Attacks 13 | . . 8 . 5 Total Damage 183 | . . 125 . 58 Kills 5 | . . 4 . 1 Allies Corrupted . | . . . . . Allies Melted 1 | . . 1 . . Intel | -11 -10 -10 -10 -9 ------- Run | Scr Mat Min Exi Min Robot Analysis Total . | . . . . . Derelict Logs Recovered 3 | . . 1 . 2 Drone Launches 1 | . . . . 1 Drone Recoveries 1 | . . . . 1 Exploration | -11 -10 -10 -10 -9 ------------- Run | Scr Mat Min Exi Min Turns Passed 9725 | 499 2511 2319 1244 3152 Spaces Moved 3897 | 155 666 882 519 1675 Core 5 | 5 . . . . Treads 2682 | 150 666 882 519 465 Legs . | . . . . . Wheels 1210 | . . . . 1210 Hover . | . . . . . Flight . | . . . . . Fastest Speed 50 | 50 160 240 240 130 Average Speed 197 | 156 207 240 240 160 Slowest Speed 240 | 160 240 240 240 240 Overloaded Moves . | . . . . . Propulsion Burnouts . | . . . . . Robots Hopped . | . . . . . Cave-ins Triggered . | . . . . . Exploration Rate (%) 76 | 5 87 99 89 102 Regions Visited 4 Branch Regions 3 Pre-discovered Areas 2 | . . 2 . . Known Exits Taken 1 | . 1 . . . Unknown Exits Taken 3 | 1 . 1 1 . Scrap Searched 4 | . . 3 . 1 Spaces Dug . | . . . . . Terrain Destroyed 132 | . . . . 132 Melee . | . . . . . Projectile . | . . . . . AOE 132 | . . . . 132 Terrain Rammed . | . . . . . Walls Destroyed . | . . . . . Machines Disabled . | . . . . . Actions | -11 -10 -10 -10 -9 --------- Run | Scr Mat Min Exi Min Total 5711 | 365 1673 1031 518 2124 Wait 1596 | 174 918 86 . 418 Move 3893 | 154 665 881 518 1675 Hop . | . . . . . Pick Up 45 | 7 18 12 . 8 Fast Attach 11 | 6 3 1 . 1 Attach 6 | 1 . 3 . 2 Detach . | . . . . . Swap 7 | . 3 2 . 2 Drop 26 | 1 5 12 . 8 Fire 127 | 22 61 34 . 10 Melee . | . . . . . Ram . | . . . . . Kick . | . . . . . Crush . | . . . . . Escape Stasis . | . . . . . Rewire . | . . . . . Trap . | . . . . . Miscellaneous . | . . . . . Route ------- -11/Scrapyard -10/Materials (discovered 4 exits: [*Mat x2] / *Min x2) -10/Mines (discovered 3 exits: [*Mat x2] / *Exi) -10/Exiles -9/Mines (discovered 2 exits: [*Mat x2]) History --------- Turn | Location | Event 12 | -11/Scrapyard | Discovered new exit (range 15) 500 | -11/Scrapyard | Entered Materials 501 | -10/Materials | Build established: Mutant 757 | -10/Materials | Identified exit to Mines 1081 | -10/Materials | Repaired Lgt. Treads 1108 | -10/Materials | Repaired Assault Rifle 1505 | -10/Materials | Discovered new exit (range 12) 1869 | -10/Materials | Discovered new exit (range 16) 3011 | -10/Materials | Entered Mines 3040 | -10/Mines | Met a Derelict bent on vengeance 3068 | -10/Mines | Lost 3 parts (1p1n1w) 3139 | -10/Mines | Joined a pair of Derelicts in attacking an 0b10 outpost 3546 | -10/Mines | Deemed a non-threat by the Exiles lab entrance 3645 | -10/Mines | Discovered new exit (range 6) 3795 | -10/Mines | Learned location of Storage (-9) 4233 | -10/Mines | Core integrity fell below 50% 4333 | -10/Mines | Discovered new exit (range 16) 4772 | -10/Mines | Learned location of Zion (-7) 5316 | -10/Mines | Discovered new exit (range 5) 5330 | -10/Mines | Entered Exiles 5330 | -10/Exiles | Found Exiles lab abandoned 5330 | -10/Exiles | Accompanied by 1 ally 5844 | -10/Exiles | Discovered new exit (range 15) 6574 | -10/Exiles | Entered Mines 6655 | -9/Mines | Met a Derelict who couldn't figure out how to use a Trap Extractor 7094 | -9/Mines | Assembled infested the area 7099 | -9/Mines | Assisted by a Guerilla fighting off Assembled 7156 | -9/Mines | Destroyed 7 combat bots 7179 | -9/Mines | Core integrity fell below 20% 7641 | -9/Mines | Learned Materials trap positions 7660 | -9/Mines | Received a Rocket Launcher from a helpful Derelict 7808 | -9/Mines | Discovered new exit (range 15) 7853 | -9/Mines | Assisted by bots powering up and referring to "LRC-V3" 8385 | -9/Mines | Discovered new exit (range 8) 8419 | -9/Mines | Found the Drone Emporium 8420 | -9/Mines | Learned Materials stockpile data 8424 | -9/Mines | Found Prototype Device 8424 | -9/Mines | Identified Splice Drone Bay 9726 | -9/Mines | Self-destructed Last Messages --------------- 08385_ EXIT=FOUND 08418_ Connecting with SHOP.Sys... >>Open Door Sealed Doors opened. 08419_ IW-NLD(g): "Well that was anticlimactic. Heard you outside and thought you were from the Merchants Guild. I haven't even officially opened my Drone Emporium yet but am totally ready to tell them where they can shove that C&D." 08420_ Acquired derelict log, extracted data. Data stored: Materials stockpile data. 08421_ IW-NLD(g): "I'm a fan of the free market. Free drones for all! No strings attached!" 08424_ Dropped Lgt. Armor Plating. 08424_ Acquired Prototype Device. 08424_ Identified Splice Drone Bay. 08427_ Splice Drone released from Splice Drone Bay. 08427_ Splice Drone retrieved by Splice Drone Bay. 08434_ Dropped Mining Laser. 08436_ Acquired Lgt. Armor Plating. 08470_ Acquired 10 matter. Map ----- +----------------------------------------------------+ | ###?##### ## | | #?????## ! * = | | " #?????# ############### | | """ """ #?????# ##### ##??????? | | #?????# ! ## ####??????? | | ##########?????# ## ########???????? | | #??????????????# % ## #??###????????? | | ######?????????## ## ## #####?## ##???????? | | #??????????###### # ##????## #???????? | | #??????????????### ## #?????# ##??????? | | #### #??????????####### ### ##?????# ##?????? | | ???# #?????????## ### #########??## ###???? | | ???# #?????????# ###### ##### | | ???# #?????????# """ | | ???# #?????????# ## ###### """ | | ???# #?????????# ## # #?######## """ | | ???# #?????????# ## # #????????# | | ???# ########### % ## # #??????## ## | | ???# ### #? #??????# ### | | ???# ###### # ###??????# ##?? | | ???############ " ## #### # # ???????# ###??? | | ??????????#########?#???#k#? #?????## ##????? | | ?????????##""""##???????#g# ? #?????# ##?????? | | ?????????#" "#???????# #? ?#?????# ###??????? | | ?????????#" "#???????# #??#??????## ##????????? | | ########### | ##?????###@#??????????##??????????? | | ## ###?????# #???????????????####???? | | X ##????# ###??????????????## ##### | | ####### ###### #????????????????# | | ##?????## #????????????????# | | ##???????## ########????????????????# | | #?????????## ##???????????????????????## | | ???????????######?????????????????????????###### | | ???????????????????????????????????????????????### | | ?????????????????????????????????????????????????? | | | | | | | | | | | | | | | | | | | | | | | | | | | | | | | +----------------------------------------------------+ Best States ------------- Heat Dissipation 25 Energy Generation 18 Energy Capacity 250 Matter Stores 300 Matter Capacity 300 Sight Range 16 Terrain Scan Density 10 Armor Coverage 150 Evasion (%) 40 Recoil Reduction 2 Item Schematics ----------------- None Robot Schematics ------------------ None Fabricated ------------ Nothing Alien Tech Used ----------------- None Achievements -------------- None Challenges ------------ None Game ------ Seed KineticPotentialSheargun Manual? 1 Play Time 00:26:41 Cumulative 285.3 hours Start 2022.04.15 @ 07:17:29 End 2022.04.15 @ 07:50:09 Sessions 3 Manual Loads 0 Difficulty Rogue Special Mode None Game No. 82 Rogue 82 Adventurer 0 Explorer 0 Win Type - Total 6 Types 3/1/0/0/2/0/0/0/0 Lore% 58 Gallery% 72 Achievement% 66 Wizard Run 0 Options --------- ASCII 0 Keyboard 0 Movement Arrows Keybinds 0 Fullscreen 0 Font 28/SmallcapsGlow Map View 72x54 Tactical HUD 1 Map Filters NONE Filters NONE Steam 1 RUN: 1625d7da-9430-4588-95cc-c9e2ffcead83